bitfinex/quotes_SOLUSD_20240912
["timestamp","ask_amount","ask_price","bid_price","bid_amount"]
[1726169368259,0.2507913,135.82,135.81,34.96513323]
[1726169368464,0.2507913,135.86,135.82,20.0]
[1726169368765,0.2507913,135.86,135.85,14.59235215]
[1726169383763,0.2507913,135.86,135.84,14.59235215]
[1726169384564,0.2507913,135.86,135.82,20.0]
[1726169384565,0.2507913,135.86,135.82,34.59235215]
[1726169385565,0.2507913,135.86,135.81,16.3402]
[1726169385888,0.2507913,135.86,135.82,14.59235215]
[1726169386588,0.2507913,135.86,135.81,14.59235215]
[1726169387396,23.776884,135.85,135.81,14.59235215]
[1726169387579,1.84061054,135.84,135.79,14.59235215]
[1726169387781,23.776884,135.83,135.79,14.59235215]
[1726169389393,23.776884,135.83,135.78,23.99847725]
[1726169389567,23.776884,135.83,135.79,14.59235215]
[1726169391701,23.776884,135.83,135.8,14.59235215]
[1726169393901,23.776884,135.83,135.81,14.59235215]
[1726169394079,23.776884,135.85,135.82,14.59235215]
[1726169394599,23.776884,135.85,135.78,23.99847725]
[1726169394600,23.776884,135.85,135.83,14.59235215]
[1726169395711,23.776884,135.85,135.82,14.59235215]
[1726169397312,23.776884,135.85,135.83,14.59235215]
[1726169399116,0.2507913,135.86,135.84,34.59235215]
[1726169400214,0.2507913,135.86,135.85,14.59235215]
[1726169400413,0.2507913,135.86,135.8,20.0]
[1726169400624,23.776884,135.85,135.79,7.66799924]
[1726169400908,23.776884,135.83,135.81,14.59235215]
[1726169401290,23.776884,135.83,135.8,14.59235215]
[1726169402728,23.776884,135.81,135.77,7.66956547]
[1726169403040,23.776884,135.81,135.78,20.0]
[1726169403337,23.776884,135.79,135.77,22.26191762]
[1726169403511,23.776884,135.79,135.77,7.66956547]
[1726169403712,23.776884,135.79,135.76,14.59235215]
[1726169404536,23.776884,135.77,135.76,14.59235215]
[1726169404705,23.776884,135.77,135.76,34.59235215]
[1726169405105,15.6068,135.8,135.76,34.59235215]
[1726169405306,23.776884,135.79,135.77,34.59235215]
[1726169405905,25.61814802,135.79,135.72,7.91449834]
[1726169406437,25.61814802,135.79,135.73,14.59235215]
[1726169406739,0.12549,135.78,135.73,14.59235215]
[1726169406915,23.776884,135.76,135.73,14.59235215]
[1726169407306,23.776884,135.76,135.74,14.59235215]
[1726169407508,23.776884,135.79,135.75,14.59235215]
[1726169407820,23.776884,135.79,135.76,14.59235215]
[1726169408021,25.61837916,135.79,135.76,14.59235215]
[1726169409620,23.776884,135.79,135.77,14.59235215]
[1726169410035,15.6068,135.8,135.78,14.59235215]
[1726169410221,15.6068,135.8,135.79,14.59235215]
[1726169410551,15.6068,135.8,135.78,14.59235215]
[1726169410836,1.84137157,135.79,135.76,14.59235215]
[1726169411518,1.84137157,135.79,135.77,14.59235215]
[1726169411519,23.776884,135.78,135.77,14.59235215]
[1726169413046,15.6068,135.8,135.77,14.59235215]
[1726169413222,23.776884,135.81,135.79,14.59235215]
[1726169413424,23.776884,135.81,135.78,14.59235215]
[1726169413425,25.61806952,135.8,135.78,14.59235215]
[1726169414038,23.776884,135.79,135.78,14.59235215]
[1726169415024,16.7171913,135.86,135.79,20.0]
[1726169415219,16.7171913,135.86,135.82,14.59235215]
[1726169415612,18.55795507,135.86,135.81,14.59235215]
[1726169416214,23.776884,135.85,135.81,14.59235215]
[1726169416914,23.776884,135.83,135.8,14.59235215]
[1726169417325,23.776884,135.81,135.79,20.0]
[1726169417612,25.61804875,135.8,135.79,20.0]
[1726169417814,23.776884,135.8,135.79,20.0]
[1726169418046,23.776884,135.8,135.79,14.59235215]
[1726169418223,23.776884,135.8,135.79,20.0]
[1726169418915,23.776884,135.79,135.76,20.0]
[1726169419116,23.776884,135.79,135.78,34.59235215]
[1726169419745,23.776884,135.79,135.77,14.59235215]
[1726169420914,23.776884,135.79,135.78,14.59235215]
[1726169423542,23.776884,135.79,135.75,6.0165]
[1726169423714,23.776884,135.77,135.76,20.0]
[1726169424311,23.776884,135.77,135.76,34.59235215]
[1726169424932,23.776884,135.77,135.72,6.6779913]
[1726169425150,23.776884,135.75,135.72,0.2507913]
[1726169425316,23.776884,135.75,135.74,14.59235215]
[1726169426355,23.776884,135.75,135.74,34.59235215]
[1726169426645,23.776884,135.8,135.75,20.0]
[1726169426845,23.776884,135.8,135.77,14.59235215]
[1726169426846,1.84144031,135.79,135.77,14.59235215]
[1726169427028,1.84144031,135.79,135.72,0.2507913]
[1726169427029,1.84144031,135.79,135.76,14.59235215]
[1726169427234,1.84144031,135.79,135.75,14.59235215]
[1726169427746,1.84168341,135.79,135.77,14.59235215]
[1726169428131,1.84168341,135.79,135.76,14.59235215]
[1726169429520,1.84168341,135.79,135.77,14.59235215]
[1726169430142,23.776884,135.79,135.78,14.59235215]
[1726169431340,23.776884,135.8,135.78,14.59235215]
[1726169431547,22.1257,135.84,135.79,14.59235215]
[1726169431724,25.61797653,135.83,135.81,14.59235215]
[1726169431928,22.1257,135.84,135.82,14.59235215]
[1726169431929,15.9534,135.84,135.82,14.59235215]
[1726169432246,0.2507913,135.86,135.83,14.59235215]
[1726169432452,0.2507913,135.86,135.84,14.59235215]
[1726169433728,24.0276753,135.86,135.83,14.59235215]
[1726169434030,23.776884,135.84,135.82,14.59235215]
[1726169434233,23.776884,135.84,135.8,22.81441562]
[1726169434234,1.84082007,135.83,135.8,22.81441562]
[1726169434432,1.84082007,135.83,135.81,20.0]
[1726169434739,1.84080866,135.83,135.81,20.0]
[1726169435540,1.84080866,135.82,135.81,20.0]
[1726169435738,1.84089573,135.83,135.81,20.0]
[1726169435944,1.8408767,135.83,135.81,20.0]
[1726169437057,1.8408767,135.82,135.81,20.0]
[1726169438132,1.84087667,135.83,135.81,20.0]
[1726169438332,25.61776065,135.84,135.81,20.0]
[1726169438758,1.8408969,135.83,135.81,20.0]
[1726169438935,23.776884,135.84,135.81,20.0]
[1726169439336,1.84089685,135.83,135.81,20.0]
[1726169439645,23.776884,135.84,135.81,20.0]
[1726169440340,1.84093745,135.83,135.81,20.0]
[1726169440541,23.776884,135.82,135.81,20.0]
[1726169440741,23.776884,135.82,135.78,22.81441562]
[1726169440955,23.776884,135.82,135.79,20.0]
[1726169441175,1.84108646,135.81,135.79,20.0]
[1726169441549,23.776884,135.82,135.79,20.0]
[1726169442046,1.84108643,135.81,135.79,20.0]
[1726169442245,1.84108643,135.8,135.79,20.0]
[1726169442448,1.84108643,135.8,135.76,42.81441562]
[1726169442658,23.776884,135.82,135.77,20.0]
[1726169442659,1.84129498,135.79,135.77,20.0]
[1726169442853,23.776884,135.82,135.77,20.0]
[1726169443162,0.25098,135.81,135.75,38.04721562]
[1726169443973,23.776884,135.82,135.77,22.81441562]
[1726169444680,25.61815659,135.82,135.78,20.0]
[1726169445059,0.12549,135.81,135.78,20.0]
[1726169445260,1.96679341,135.81,135.78,20.0]
[1726169445554,23.776884,135.8,135.78,20.0]
[1726169445959,0.12549,135.81,135.78,20.0]
[1726169449491,1.96679292,135.81,135.78,20.0]
[1726169449785,23.776884,135.8,135.78,20.0]
[1726169451281,25.74366626,135.81,135.78,20.0]
[1726169451684,16.275,135.83,135.78,20.0]
[1726169451866,15.8484913,135.86,135.8,20.0]
[1726169452065,15.8484913,135.86,135.81,22.81441562]
[1726169453482,25.61770015,135.85,135.81,22.81441562]
[1726169453669,0.2507913,135.86,135.83,22.81441562]
[1726169454457,0.2507913,135.86,135.85,22.81441562]
[1726169454660,0.2507913,135.86,135.85,42.81441562]
[1726169462201,0.2507913,135.86,135.85,34.58997419]
[1726169462885,0.2507913,135.9,135.86,20.0]
[1726169463207,0.2507913,135.9,135.89,14.58997419]
[1726169463884,0.2507913,135.9,135.89,34.58997419]
[1726169464076,0.2507913,135.94,135.9,20.0]
[1726169464279,0.2507913,135.94,135.93,14.58997419]
[1726169465803,0.2507913,135.94,135.92,14.58997419]
[1726169466228,0.2507913,135.94,135.9,22.7802387]
[1726169469003,0.2507913,135.94,135.89,20.0]
[1726169469004,23.776884,135.92,135.89,20.0]
[1726169469306,23.776884,135.9,135.87,20.0]
[1726169469605,23.776884,135.88,135.86,22.7802387]
[1726169470715,6.5252913,135.94,135.88,20.0]
[1726169470716,0.2507913,135.94,135.88,20.0]
[1726169471015,0.2507913,135.94,135.91,22.7802387]
[1726169475712,0.2507913,135.94,135.89,22.7802387]
[1726169475889,0.2507913,135.94,135.9,20.0]
[1726169478324,0.2507913,135.94,135.91,22.7802387]
[1726169478720,23.776884,135.93,135.91,22.7802387]
[1726169487921,23.776884,135.93,135.9,20.0]
[1726169488122,23.776884,135.91,135.9,20.0]
[1726169488341,23.776884,135.91,135.9,34.5806093]
[1726169492246,23.776884,135.91,135.87,15.3797]
[1726169492551,23.776884,135.89,135.87,14.5806093]
[1726169493441,23.776884,135.89,135.88,34.5806093]
[1726169500260,24.0276753,135.94,135.89,20.0]
[1726169500553,24.0276753,135.94,135.92,14.5806093]
[1726169502439,24.0276753,135.94,135.85,6.613]
[1726169502440,24.0276753,135.94,135.93,14.5806093]
[1726169502745,0.2507913,135.94,135.93,14.5806093]
[1726169506431,0.2507913,135.94,135.9,6.1687]
[1726169506645,0.2507913,135.94,135.93,14.5806093]
[1726169507168,0.2507913,135.94,135.92,14.5806093]
[1726169507336,23.776884,135.93,135.9,14.5806093]
[1726169507533,25.61648775,135.92,135.91,20.0]
[1726169508572,0.12549,135.92,135.84,16.1365]
[1726169508742,23.902374,135.91,135.87,14.5806093]
[1726169509062,23.776884,135.89,135.88,14.5806093]
[1726169509257,23.776884,135.89,135.86,14.5806093]
[1726169509639,23.776884,135.89,135.87,14.5806093]
[1726169509838,23.776884,135.89,135.88,14.5806093]
[1726169510039,23.776884,135.89,135.88,34.5806093]
[1726169510241,23.776884,135.89,135.88,20.0]
[1726169511056,23.776884,135.9,135.87,20.0]
[1726169511252,23.776884,135.88,135.87,20.0]
[1726169512771,23.776884,135.88,135.84,16.1365]
[1726169512772,23.776884,135.88,135.85,20.0]
[1726169512975,23.776884,135.86,135.81,7.69472331]
[1726169513176,23.776884,135.86,135.82,22.79352672]
[1726169513466,23.776884,135.86,135.84,22.79352672]
[1726169514269,23.776884,135.86,135.85,20.0]
[1726169518560,23.776884,135.86,135.81,20.0]
[1726169518781,23.776884,135.86,135.85,22.79352672]
[1726169519076,23.776884,135.86,135.85,42.79352672]
[1726169520474,23.776884,135.86,135.84,20.0]
[1726169520844,23.776884,135.86,135.85,22.79352672]
[1726169521040,23.776884,135.86,135.85,42.79352672]
[1726169524569,15.4797913,135.94,135.85,42.79352672]
[1726169524764,0.12549,135.93,135.87,22.79352672]
[1726169525980,23.902374,135.93,135.87,22.79352672]
[1726169526286,0.12549,135.92,135.87,22.79352672]
[1726169526480,23.776884,135.91,135.86,20.0]
[1726169526777,23.776884,135.89,135.84,20.0]
[1726169526959,2.09132114,135.9,135.84,20.0]
[1726169526960,23.776884,135.87,135.84,20.0]
[1726169527273,23.776884,135.85,135.84,20.0]
[1726169528858,23.776884,135.85,135.81,22.79352672]
[1726169529054,23.776884,135.83,135.81,22.79352672]
[1726169529975,23.776884,135.83,135.82,20.0]
[1726169530867,23.776884,135.83,135.8,20.2507913]
[1726169531489,23.776884,135.83,135.8,0.2507913]
[1726169531881,23.776884,135.83,135.81,22.79352672]
[1726169532974,23.776884,135.83,135.82,20.0]
[1726169535995,15.9512,135.89,135.82,20.0]
[1726169536309,24.027864,135.88,135.84,22.79352672]
[1726169536471,23.902374,135.88,135.84,22.79352672]
[1726169536673,15.7903,135.93,135.86,22.79352672]
[1726169536893,15.7903,135.93,135.88,22.79352672]
[1726169538200,1.83995246,135.92,135.88,22.79352672]
[1726169538504,15.7903,135.93,135.88,22.79352672]
[1726169539000,23.776884,135.92,135.88,22.79352672]
[1726169539206,0.12549,135.91,135.88,22.79352672]
[1726169540616,23.776884,135.92,135.88,22.79352672]
[1726169540783,23.776884,135.92,135.9,22.79352672]
[1726169541102,15.7903,135.93,135.9,22.79352672]
[1726169541998,0.12549,135.92,135.9,22.79352672]
[1726169542204,0.12549,135.92,135.91,14.58403791]
[1726169542675,23.902374,135.92,135.91,14.58403791]
[1726169544903,25.74212038,135.92,135.91,14.58403791]
[1726169545104,25.86761038,135.92,135.89,14.58403791]
[1726169546191,25.86761038,135.92,135.91,14.58403791]
[1726169546502,24.027864,135.92,135.91,14.58403791]
[1726169546805,23.902374,135.92,135.91,14.58403791]
[1726169550314,23.776884,135.92,135.91,14.58403791]
[1726169552092,0.2507913,135.94,135.91,14.58403791]
[1726169552307,0.2507913,135.94,135.93,14.58403791]
[1726169555314,0.2507913,135.94,135.92,14.58403791]
[1726169556020,0.2507913,135.94,135.93,14.58403791]
[1726169556199,0.3762813,135.94,135.93,14.58403791]
[1726169556600,0.2507913,135.94,135.93,14.58403791]
[1726169556908,0.5017713,135.94,135.86,20.0]
[1726169557090,23.776884,135.92,135.89,14.58403791]
[1726169557289,23.776884,135.9,135.89,14.58403791]
[1726169562420,23.776884,135.9,135.88,14.58403791]
[1726169562590,1.84013576,135.89,135.88,14.58403791]
[1726169562792,23.776884,135.88,135.86,14.58403791]
[1726169563002,1.84036696,135.87,135.85,14.58403791]
[1726169563314,23.776884,135.86,135.85,14.58403791]
[1726169572416,23.776884,135.86,135.83,20.0]
[1726169572618,23.776884,135.84,135.83,34.58403791]
[1726169572816,24.027864,135.84,135.81,14.58403791]
[1726169573004,23.902374,135.84,135.82,14.58403791]
[1726169573529,25.61773668,135.83,135.82,14.58403791]
[1726169573699,23.776884,135.83,135.82,14.58403791]
[1726169575324,23.776884,135.83,135.81,14.58403791]
[1726169575325,23.776884,135.82,135.81,14.58403791]
[1726169575632,23.776884,135.82,135.8,0.2507913]
[1726169575633,25.6178599,135.82,135.8,14.83482921]
[1726169576419,1.84103227,135.81,135.8,14.83482921]
[1726169576626,25.61791627,135.81,135.8,14.83482921]
[1726169577308,23.902374,135.81,135.8,14.83482921]
[1726169577513,23.776884,135.81,135.8,14.83482921]
[1726169579539,16.5337,135.86,135.8,14.83482921]
[1726169579719,25.74329872,135.85,135.82,14.58403791]
[1726169579907,23.902374,135.85,135.83,14.58403791]
[1726169580111,1.84077352,135.85,135.84,14.58403791]
[1726169580542,1.84066446,135.88,135.84,14.58403791]
[1726169580837,1.84066238,135.87,135.84,14.58403791]
[1726169581740,23.902374,135.86,135.84,14.58403791]
[1726169581928,0.12549,135.85,135.84,14.58403791]
[1726169583024,23.902374,135.86,135.84,14.58403791]
[1726169583215,23.776884,135.86,135.85,14.58403791]
[1726169583411,23.902374,135.86,135.85,14.58403791]
[1726169587254,6.2093,135.91,135.85,14.58403791]
[1726169587553,15.4862,135.92,135.88,14.58403791]
[1726169587753,15.4862,135.92,135.87,14.58403791]
[1726169588438,23.776884,135.91,135.87,14.58403791]
[1726169588953,0.12549,135.9,135.87,14.58403791]
[1726169590760,0.12549,135.9,135.88,14.58403791]
[1726169591151,0.12549,135.9,135.83,15.2244]
[1726169591152,23.776884,135.89,135.87,14.58403791]
[1726169591463,25.61698278,135.88,135.87,14.58403791]
[1726169591764,23.776884,135.88,135.86,14.58403791]
[1726169591964,1.8403725,135.87,135.85,14.58403791]
[1726169592136,1.8403725,135.87,135.86,14.58403791]
[1726169592537,25.6172565,135.87,135.85,14.58403791]
[1726169592846,25.61723092,135.86,135.85,14.58403791]
[1726169593043,1.96583594,135.9,135.85,14.58403791]
[1726169593242,23.776884,135.89,135.87,14.58403791]
[1726169593541,25.74257038,135.88,135.87,14.58403791]
[1726169593849,23.902374,135.88,135.87,14.58403791]
[1726169595261,23.776884,135.87,135.84,14.58403791]
[1726169595474,23.776884,135.85,135.81,6.175]
[1726169595651,0.12549,135.88,135.84,14.58403791]
[1726169595853,23.776884,135.87,135.85,14.58403791]
[1726169596041,25.6172819,135.86,135.85,14.58403791]
[1726169596243,23.776884,135.86,135.85,14.58403791]
[1726169597856,23.776884,135.85,135.84,14.58403791]
[1726169598064,23.776884,135.85,135.81,6.175]
[1726169598270,23.776884,135.83,135.82,14.58403791]
[1726169602835,24.027864,135.83,135.82,14.58403791]
[1726169605263,23.902374,135.83,135.82,14.58403791]
[1726169606982,24.027864,135.83,135.82,14.58403791]
[1726169607169,24.027864,135.83,135.8,14.83482921]
[1726169607352,23.776884,135.81,135.8,0.2507913]
[1726169607547,23.902374,135.81,135.8,0.2507913]
[1726169609467,24.027864,135.81,135.8,0.2507913]
[1726169620862,25.86952955,135.81,135.8,0.2507913]
[1726169625288,25.86959086,135.81,135.8,0.2507913]
[1726169628277,20.0,135.84,135.8,0.2507913]
[1726169628484,16.5748,135.85,135.81,14.58403791]
[1726169629502,23.776884,135.84,135.81,14.58403791]
[1726169629799,0.25098,135.83,135.8,14.83482921]
[1726169631499,23.776884,135.82,135.8,14.83482921]
[1726169631798,25.74348366,135.81,135.8,14.83482921]
[1726169632188,23.902374,135.81,135.8,14.83482921]
[1726169632698,23.902374,135.81,135.8,0.2507913]
[1726169633389,24.027864,135.81,135.8,0.2507913]
[1726169635524,24.027864,135.81,135.8,14.83482921]
[1726169636506,24.027864,135.81,135.8,0.2507913]
[1726169642021,24.027864,135.81,135.8,14.83482921]
[1726169643433,23.902374,135.81,135.8,14.83482921]
[1726169644837,23.776884,135.81,135.8,14.83482921]
[1726169645222,16.259,135.89,135.8,14.83482921]
[1726169645524,16.259,135.89,135.84,14.58403791]
[1726169645836,16.259,135.89,135.85,14.58403791]
[1726169647538,16.259,135.89,135.82,16.3684]
[1726169647539,1.84046636,135.88,135.84,14.58403791]
[1726169647720,0.25098,135.87,135.84,14.58403791]
[1726169648036,23.776884,135.85,135.83,14.58403791]
[1726169648214,2.09170944,135.84,135.82,14.58403791]
[1726169648409,23.776884,135.83,135.81,14.58403791]
[1726169648820,1.84084577,135.82,135.8,14.83482921]
[1726169649017,23.776884,135.81,135.8,14.83482921]
[1726169650712,23.902374,135.81,135.8,0.2507913]
[1726169653135,24.027864,135.81,135.8,0.2507913]
[1726169653710,23.902374,135.81,135.8,14.83482921]
[1726169653910,23.776884,135.81,135.8,14.83482921]
[1726169660734,16.259,135.89,135.81,20.0]
[1726169661054,0.12549,135.88,135.84,14.58403791]
[1726169661243,1.96614931,135.88,135.83,14.58403791]
[1726169661925,23.776884,135.87,135.83,14.58403791]
[1726169662139,23.776884,135.85,135.83,14.58403791]
[1726169662447,1.84069424,135.84,135.83,14.58403791]
[1726169662622,23.776884,135.84,135.83,14.58403791]
[1726169672644,24.027864,135.84,135.83,14.58403791]
[1726169672845,23.902374,135.84,135.83,14.58403791]
[1726169673344,23.776884,135.83,135.8,0.2507913]
[1726169673548,23.776884,135.83,135.82,14.58403791]
[1726169680478,16.259,135.89,135.82,14.58403791]
[1726169680778,0.12549,135.88,135.85,14.58403791]
[1726169681273,0.12549,135.88,135.84,14.58403791]
[1726169681779,24.027864,135.88,135.84,14.58403791]
[1726169684376,23.776884,135.86,135.82,14.58403791]
[1726169684558,23.776884,135.84,135.82,14.58403791]
[1726169684752,23.776884,135.84,135.83,14.58403791]
[1726169689174,23.776884,135.84,135.82,14.58403791]
[1726169690069,23.776884,135.82,135.8,0.2507913]
[1726169690272,24.027864,135.81,135.8,0.2507913]
[1726169690471,23.902374,135.81,135.8,0.2507913]
[1726169690682,23.776884,135.81,135.8,0.2507913]
[1726169694764,23.776884,135.81,135.8,14.83482921]
[1726169696490,23.776884,135.81,135.8,0.2507913]
[1726169696686,24.027864,135.81,135.8,14.83482921]
[1726169698075,24.027864,135.81,135.8,0.2507913]
[1726169699885,24.027864,135.81,135.8,14.83482921]
[1726169700288,24.027864,135.81,135.8,0.2507913]
[1726169700496,25.86955995,135.81,135.8,0.2507913]
[1726169701493,24.027864,135.81,135.8,0.2507913]
[1726169703479,23.902374,135.81,135.8,14.83482921]
[1726169703669,23.776884,135.81,135.8,14.83482921]
[1726169711528,23.776884,135.84,135.8,14.83482921]
[1726169711805,23.776884,135.82,135.81,14.58403791]
[1726169712881,23.902374,135.82,135.81,14.58403791]
[1726169714001,23.902374,135.82,135.8,14.83482921]
[1726169714213,25.61790494,135.81,135.8,0.2507913]
[1726169714505,25.74339494,135.81,135.8,0.2507913]
[1726169714913,23.902374,135.81,135.8,0.2507913]
[1726169716007,24.027864,135.81,135.8,0.2507913]
[1726169723324,0.12549,135.81,135.8,14.83482921]
[1726169723511,15.8883,135.85,135.8,14.83482921]
[1726169723711,0.12549,135.84,135.81,14.58403791]
[1726169724716,24.027864,135.84,135.81,14.58403791]
[1726169725934,1.84109005,135.83,135.81,14.58403791]
[1726169726228,25.74334323,135.82,135.81,14.58403791]
[1726169726403,23.902374,135.82,135.81,14.58403791]
[1726169729407,7.69583063,135.89,135.81,14.58403791]
[1726169729626,7.69583063,135.89,135.88,14.58403791]
[1726169730327,7.69583063,135.89,135.87,14.58403791]
[1726169730528,7.69583063,135.89,135.86,14.58403791]
[1726169730529,9.53603771,135.89,135.86,14.58403791]
[1726169731018,24.027864,135.88,135.86,14.58403791]
[1726169731609,24.027864,135.88,135.87,14.58403791]
[1726169732018,23.902374,135.88,135.87,14.58403791]
[1726169732219,7.69583063,135.89,135.87,14.58403791]
[1726169732423,21.4731913,135.94,135.88,14.58403791]
[1726169732717,15.3274913,135.94,135.9,14.58403791]
[1726169733933,24.027864,135.93,135.9,14.58403791]
[1726169734131,24.027864,135.93,135.89,14.58403791]
[1726169736106,23.776884,135.93,135.89,14.58403791]
[1726169736311,1.83985899,135.92,135.89,14.58403791]
[1726169737623,24.027864,135.91,135.89,14.58403791]
[1726169737840,24.027864,135.91,135.9,14.58403791]
[1726169738135,23.902374,135.91,135.89,14.58403791]
[1726169738335,23.776884,135.91,135.9,14.58403791]
[1726169741725,24.027864,135.91,135.9,14.58403791]
[1726169742126,23.902374,135.91,135.9,14.58403791]
[1726169742708,0.2507913,135.94,135.9,14.58403791]
[1726169742915,2.09039702,135.94,135.91,14.58403791]
[1726169743932,25.61644972,135.93,135.91,14.58403791]
[1726169744326,0.2507913,135.94,135.92,14.58403791]
[1726169744526,0.2507913,135.94,135.93,14.58403791]
[1726169748149,24.0276753,135.94,135.93,14.58403791]
[1726169754062,24.0276753,135.94,135.89,16.6191]
[1726169754063,25.86686799,135.94,135.9,20.0]
[1726169754231,25.86686799,135.94,135.89,16.6191]
[1726169754232,0.25098,135.93,135.89,14.58403791]
[1726169754433,23.776884,135.91,135.89,14.58403791]
[1726169754759,1.83975342,135.9,135.89,14.58403791]
[1726169754941,25.61663742,135.9,135.89,14.58403791]
[1726169755767,23.776884,135.9,135.89,14.58403791]
[1726169757567,23.776884,135.89,135.88,14.58403791]
[1726169759382,23.776884,135.89,135.87,14.58403791]
[1726169759694,23.776884,135.88,135.85,15.8863]
[1726169760001,25.61718346,135.87,135.83,6.2476]
[1726169760160,0.12549,135.86,135.85,14.58403791]
[1726169760354,23.776884,135.87,135.85,14.58403791]
[1726169760581,23.776884,135.87,135.86,14.58403791]
[1726169760760,1.84020694,135.9,135.86,14.58403791]
[1726169760958,25.74242712,135.89,135.88,14.58403791]
[1726169761479,23.776884,135.88,135.87,14.58403791]
[1726169761671,23.902374,135.88,135.87,14.58403791]
[1726169762778,23.776884,135.88,135.87,14.58403791]
[1726169763577,0.12549,135.93,135.87,14.58403791]
[1726169763778,0.12549,135.93,135.89,14.58403791]
[1726169763965,24.56589872,135.94,135.89,14.58403791]
[1726169765494,23.776884,135.93,135.89,14.58403791]
[1726169765720,0.25098,135.92,135.89,14.58403791]
[1726169766070,23.776884,135.91,135.89,14.58403791]
[1726169767003,23.776884,135.89,135.87,14.58403791]
[1726169767294,23.776884,135.87,135.82,6.1636]
[1726169767505,23.776884,135.85,135.82,6.1636]
[1726169767795,23.776884,135.85,135.84,14.58403791]
[1726169768172,23.776884,135.85,135.83,14.58403791]
[1726169768385,1.84062565,135.84,135.8,0.2507913]
[1726169768574,23.776884,135.83,135.81,14.58403791]
[1726169769369,23.776884,135.83,135.82,14.58403791]
[1726169771400,0.12549,135.86,135.82,14.58403791]
[1726169771593,0.12549,135.86,135.84,14.58403791]
[1726169772196,0.12549,135.86,135.82,22.81008041]
[1726169773112,0.25098,135.86,135.82,22.81008041]
[1726169773299,0.25098,135.86,135.8,0.2507913]
[1726169773300,0.25098,135.86,135.81,20.0]
[1726169775715,23.776884,135.84,135.81,20.0]
[1726169775886,0.25098,135.86,135.81,20.0]
[1726169776794,0.25098,135.86,135.82,22.81008041]
[1726169777492,23.776884,135.85,135.82,22.81008041]
[1726169777999,23.776884,135.85,135.84,22.81008041]
[1726169778397,6.216,135.91,135.84,22.81008041]
[1726169778716,24.027864,135.88,135.84,22.81008041]
[1726169779197,24.13287176,135.93,135.84,22.81008041]
[1726169779398,16.4446,135.93,135.86,22.81008041]
[1726169780498,18.28443178,135.93,135.86,22.81008041]
[1726169781104,18.28443178,135.93,135.86,52.81008041]
[1726169781495,24.027864,135.92,135.86,52.81008041]
[1726169781696,0.2507913,135.94,135.88,22.81008041]
[1726169781904,2.09043696,135.94,135.88,22.81008041]
[1726169782105,2.09043696,135.94,135.88,52.81008041]
[1726169783123,24.027864,135.93,135.88,52.81008041]
[1726169783296,0.25098,135.93,135.88,52.81008041]
[1726169784827,0.25098,135.93,135.9,22.81008041]
[1726169785016,24.0276753,135.94,135.9,52.81008041]
[1726169785210,1.83942011,135.93,135.9,52.81008041]
[1726169785415,24.0276753,135.94,135.9,52.81008041]
[1726169785912,23.776884,135.92,135.9,52.81008041]
[1726169786304,23.776884,135.92,135.9,30.0]
[1726169789714,1.83948493,135.91,135.9,30.0]
[1726169789915,23.776884,135.91,135.9,30.0]
[1726169792138,23.902374,135.91,135.9,30.0]
[1726169792436,24.027864,135.91,135.9,30.0]
[1726169792805,23.776884,135.91,135.9,30.0]
[1726169794136,23.776884,135.91,135.9,44.58594282]
[1726169795828,23.776884,135.91,135.9,30.0]
[1726169796025,24.027864,135.91,135.9,30.0]
[1726169799421,23.776884,135.9,135.87,14.58594282]
[1726169799641,0.12549,135.89,135.87,14.58594282]
[1726169800313,0.12549,135.89,135.88,14.58594282]
[1726169801831,23.902374,135.9,135.88,14.58594282]
[1726169802657,23.902374,135.9,135.89,14.58594282]
[1726169802858,24.027864,135.9,135.89,14.58594282]
[1726169804359,23.902374,135.9,135.89,14.58594282]
[1726169804738,23.776884,135.9,135.89,14.58594282]
[1726169805430,0.2507913,135.94,135.89,14.58594282]
[1726169805637,0.25098,135.93,135.9,14.58594282]
[1726169807155,0.25098,135.93,135.84,22.2273]
[1726169807156,0.25098,135.93,135.89,14.58594282]
[1726169808159,0.25098,135.93,135.84,22.2273]
[1726169808367,0.25098,135.93,135.88,14.58594282]
[1726169809140,0.25098,135.93,135.87,14.58594282]
[1726169809141,23.776884,135.92,135.87,14.58594282]
[1726169809335,23.776884,135.9,135.87,14.58594282]